bitfinex/quotes_ETHUSD_20250810
["timestamp","ask_amount","ask_price","bid_price","bid_amount"]
[1754813267957,0.28269,4170.7,4170.1,2.39797191]
[1754813268161,1.932,4170.6,4170.2,2.39795278]
[1754813268362,1.932,4170.5,4170.2,2.39791702]
[1754813268561,0.4828,4170.4,4169.2,0.4441]
[1754813268766,1.932,4170.5,4169.2,0.4441]
[1754813268767,1.932,4170.5,4170.2,2.39790944]
[1754813268963,0.9548,4170.4,4169.0,0.4441]
[1754813269160,1.932,4170.5,4170.2,2.39795813]
[1754813269496,0.1932,4170.4,4170.2,2.39795813]
[1754813269696,0.1932,4170.4,4170.1,2.39801371]
[1754813269871,0.1932,4170.4,4169.9,3.0]
[1754813269872,0.1932,4170.4,4169.9,2.39812586]
[1754813270071,1.932,4170.5,4169.6,0.001]
[1754813270273,1.932,4170.5,4170.4,2.39785152]
[1754813270490,1.932,4170.5,4169.6,3.001]
[1754813270491,1.932,4170.5,4170.2,2.39795427]
[1754813270688,1.932,4170.5,4169.6,0.001]
[1754813270871,2.4148,4170.5,4169.6,0.001]
[1754813271311,0.55,4170.3,4169.6,0.001]
[1754813271807,2.8898,4170.2,4169.6,0.001]
[1754813272226,0.9548,4170.2,4169.6,0.001]
[1754813272512,1.935,4170.1,4169.6,2.39926177]
[1754813272698,1.935,4170.1,4169.6,0.001]
[1754813272880,2.8898,4170.1,4169.6,2.39930483]
[1754813273083,3.117,4170.8,4169.6,0.001]
[1754813273289,0.9548,4170.6,4169.8,2.39816771]
[1754813273602,0.9548,4170.6,4169.6,2.39931053]
[1754813273603,0.9548,4170.6,4169.7,2.39825407]
[1754813273798,3.35256145,4170.6,4169.8,2.39814851]
[1754813274198,2.39787262,4170.4,4169.6,0.001]
[1754813274392,3.35254323,4170.6,4169.8,2.39818851]
[1754813274587,1.85031369,4170.6,4169.8,2.39818779]
[1754813274801,0.12,4170.1,4169.6,3.001]
[1754813274976,0.9548,4170.0,4169.6,0.001]
[1754813275181,0.12,4169.8,4169.6,0.001]
[1754813275490,0.12,4169.8,4169.6,2.39929614]
[1754813275691,0.12,4169.8,4169.7,2.39825407]
[1754813275886,0.12,4169.8,4169.6,0.001]
[1754813276112,0.12,4169.8,4169.7,2.39825407]
[1754813276494,0.12,4169.8,4169.6,0.001]
[1754813276995,0.12,4169.8,4169.7,2.39825407]
[1754813277892,1.934,4169.9,4169.6,0.001]
[1754813278486,0.98477745,4169.8,4169.6,0.001]
[1754813278686,0.12,4169.7,4169.6,0.001]
[1754813278886,2.05,4169.7,4169.6,0.001]
[1754813279888,2.05,4169.7,4169.6,2.39931158]
[1754813280290,2.05,4169.7,4169.6,0.001]
[1754813280903,3.0048,4169.7,4169.6,0.001]
[1754813281095,3.81488671,4169.7,4169.6,0.001]
[1754813281290,3.78490854,4169.7,4169.6,0.001]
[1754813281652,1.928,4169.7,4169.6,2.39931158]
[1754813282297,1.928,4169.7,4169.6,0.001]
[1754813282813,1.928,4169.8,4169.7,2.39825407]
[1754813283326,3.117,4170.8,4169.7,2.39825407]
[1754813283528,0.12,4170.5,4170.2,2.39792456]
[1754813283728,0.12,4170.5,4169.9,0.12]
[1754813283932,0.12,4170.5,4170.0,2.39806021]
[1754813284095,0.12,4170.5,4170.2,2.39795666]
[1754813284430,0.12,4170.5,4170.1,2.39802402]
[1754813284637,0.00160742,4171.8,4170.4,0.12]
[1754813284638,0.12,4171.0,4170.4,0.12]
[1754813284795,2.046,4171.0,4170.8,2.3976038]
[1754813284995,2.046,4171.0,4170.7,2.39767562]
[1754813285190,2.046,4171.0,4170.8,2.39758099]
[1754813285443,2.046,4171.0,4170.9,2.39756407]
[1754813285651,2.046,4171.0,4170.6,2.39773653]
[1754813285652,2.046,4171.0,4170.8,2.3976191]
[1754813285856,0.6878,4172.1,4170.6,0.0083453]
[1754813286062,0.12,4171.8,4171.6,2.39713262]
[1754813286212,0.12,4171.8,4171.7,2.39710429]
[1754813286511,0.12,4171.8,4171.2,0.00833421]
[1754813286512,0.02996236,4171.9,4171.2,2.39737816]
[1754813286708,0.12,4171.8,4171.3,3.0]
[1754813286912,0.7,4171.4,4170.6,2.39768732]
[1754813287238,0.12,4171.3,4171.1,2.39743628]
[1754813287444,2.627,4171.4,4171.0,0.12]
[1754813288120,3.38214402,4171.3,4171.0,0.12]
[1754813288343,2.39740041,4171.2,4171.0,0.12]
[1754813288551,2.39740041,4171.2,4169.7,2.39825407]
[1754813288552,0.9548,4171.2,4169.7,2.39825407]
[1754813288847,0.12,4170.6,4169.9,0.12]
[1754813289051,0.12,4170.2,4169.6,0.121]
[1754813289344,0.5127753,4170.1,4169.6,0.121]
[1754813289514,0.9548,4170.0,4169.6,0.001]
[1754813289715,2.39825407,4169.7,4169.6,0.001]
[1754813289914,4.32525407,4169.7,4169.6,0.001]
[1754813290161,5.28005407,4169.7,4169.6,0.001]
[1754813290314,1.927,4169.7,4169.6,0.001]
[1754813290513,1.927,4169.7,4169.6,2.39931158]
[1754813290916,1.927,4170.1,4170.0,2.39802542]
[1754813291219,0.36117667,4171.1,4169.6,0.121]
[1754813291220,0.12,4170.4,4170.2,2.39794819]
[1754813291420,1.6548,4171.4,4170.0,0.12]
[1754813291715,1.927,4171.3,4170.6,3.0]
[1754813291956,1.1828,4171.4,4170.3,0.12]
[1754813291957,0.12,4171.1,4170.7,2.39767079]
[1754813292248,1.927,4171.2,4170.3,3.0083459]
[1754813292432,2.626,4171.4,4171.0,0.12]
[1754813292637,2.626,4171.4,4171.3,2.39733416]
[1754813292994,2.626,4171.4,4171.0,0.12]
[1754813293168,3.35218552,4171.3,4170.6,3.0]
[1754813293495,0.12,4171.1,4170.0,3.0]
[1754813293792,0.12,4171.1,4170.7,2.39762821]
[1754813293960,0.12,4171.1,4170.6,2.39772606]
[1754813294288,0.12,4171.1,4170.3,0.12]
[1754813294595,0.12,4171.1,4170.8,2.39761105]
[1754813295086,0.12,4171.1,4170.5,3.0]
[1754813295401,0.7,4171.4,4171.0,5.39746835]
[1754813295609,0.7,4171.4,4171.0,3.0]
[1754813295902,0.7,4171.4,4171.3,2.39733416]
[1754813296067,0.7,4171.4,4171.3,5.51733416]
[1754813296571,0.7,4171.4,4171.3,3.0]
[1754813297603,1.6126,4171.4,4171.3,3.0]
[1754813297963,2.02557056,4171.4,4171.3,3.0]
[1754813298162,2.02557056,4171.4,4171.1,0.12]
[1754813298163,4.00992057,4171.4,4170.6,2.39769523]
[1754813298576,4.00992057,4171.4,4170.7,2.39766148]
[1754813298785,1.6126,4171.4,4170.6,2.39772682]
[1754813298990,1.6126,4171.4,4170.1,0.001]
[1754813299188,1.923,4171.3,4171.2,2.39739163]
[1754813299872,0.7,4171.4,4171.3,5.39733416]
[1754813300072,0.002,4172.0,4171.6,2.39714923]
[1754813300268,0.002,4172.0,4169.3,2.39846881]
[1754813300269,0.002,4172.0,4170.5,0.55]
[1754813300526,0.002,4172.0,4171.5,2.39720726]
[1754813300884,0.4695,4171.9,4170.7,0.4418]
[1754813301083,2.39704683,4171.8,4171.1,2.39743883]
[1754813301288,1.15205,4171.9,4170.3,0.55]
[1754813301484,2.39726182,4171.5,4170.7,2.39763093]
[1754813301685,4.32026182,4171.5,4170.7,2.39763093]
[1754813301991,0.9126,4171.4,4170.1,0.001]
[1754813302194,2.3976118,4170.9,4170.1,0.001]
[1754813302411,1.923,4170.8,4170.1,0.001]
[1754813302622,1.923,4170.9,4170.8,2.39759674]
[1754813302780,0.9126,4171.9,4170.4,0.00834632]
[1754813302980,1.923,4171.8,4171.5,2.39717542]
[1754813303206,1.923,4171.8,4170.6,3.0]
[1754813303410,1.923,4171.8,4171.5,2.39716222]
[1754813303808,1.923,4171.8,4171.7,2.39710429]
[1754813304009,3.118,4172.3,4171.9,2.39698938]
[1754813304182,3.118,4172.3,4170.9,1.988]
[1754813304183,3.118,4172.3,4170.9,0.9918]
[1754813304387,3.118,4172.3,4171.1,2.39744911]
[1754813304584,0.9146,4172.0,4170.9,0.55]
[1754813304818,0.002,4172.0,4170.9,0.9918]
[1754813305026,0.002,4172.0,4171.9,2.39698938]
[1754813305306,0.002,4172.0,4171.5,2.39716631]
[1754813305510,0.002,4172.0,4171.1,0.55]
[1754813305713,0.002,4172.0,4171.3,3.0]
[1754813305910,0.002,4172.0,4171.1,0.55]
[1754813305911,0.002,4172.0,4171.4,2.39726687]
[1754813306104,0.002,4172.0,4171.6,2.3971229]
[1754813306495,0.9146,4172.0,4171.7,2.39709638]
[1754813306696,0.9146,4172.0,4171.2,3.0]
[1754813306897,0.9146,4172.0,4171.5,2.39716362]
[1754813307098,0.4695,4171.9,4171.4,2.39726805]
[1754813307417,3.79192329,4171.9,4171.1,2.39739319]
[1754813307619,1.39493359,4171.9,4170.5,0.55]
[1754813307821,1.39493359,4171.9,4171.0,2.39750548]
[1754813308010,3.79194579,4171.9,4171.2,2.39737688]
[1754813308215,0.12,4171.8,4171.5,2.39720982]
[1754813308718,0.12,4171.8,4171.3,3.0]
[1754813308918,0.122,4172.0,4171.4,2.39727669]
[1754813309142,0.9126,4171.9,4170.1,0.001]
[1754813309423,0.9126,4171.9,4171.0,2.39749666]
[1754813309619,0.9126,4171.9,4170.5,5.39778273]
[1754813309832,0.002,4172.0,4170.8,0.55]
[1754813309992,0.002,4172.0,4171.0,3.0]
[1754813310190,0.002,4172.0,4170.9,0.4418]
[1754813310440,0.002,4172.0,4171.7,2.39706438]
[1754813310724,0.002,4172.0,4171.0,3.0]
[1754813311020,2.39722591,4171.5,4170.8,2.39760806]
[1754813311216,5.47360103,4171.4,4170.5,2.39774807]
[1754813311417,5.47360103,4171.4,4170.2,0.001]
[1754813311418,3.07632259,4171.4,4170.2,0.001]
[1754813311589,3.07632259,4171.4,4171.0,2.39749972]
[1754813311792,2.39699817,4171.9,4170.4,0.00834199]
[1754813311793,1.923,4171.3,4170.4,0.00834199]
[1754813311990,1.923,4171.3,4170.4,3.4418]
[1754813312190,0.4695,4171.8,4171.3,2.39731011]
[1754813312421,1.923,4171.7,4170.6,0.001]
[1754813312623,0.002,4172.0,4170.9,0.55]
[1754813312791,1.923,4171.9,4171.0,5.83930659]
[1754813312987,1.923,4171.9,4171.8,2.39704683]
[1754813313291,1.923,4171.9,4171.3,2.39730247]
[1754813313608,1.923,4171.9,4171.0,3.0]
[1754813313809,1.923,4171.9,4171.2,2.39736581]
[1754813314106,0.94256308,4171.8,4170.6,0.001]
[1754813314499,3.30970429,4171.7,4170.9,2.39755841]
[1754813314903,2.39716364,4171.6,4170.9,2.39755841]
[1754813315119,3.30972353,4171.7,4171.0,2.39747127]
[1754813315321,2.16245,4171.9,4170.6,0.001]
[1754813315571,2.39756428,4170.9,4170.6,0.001]
[1754813315872,1.923,4170.8,4170.6,0.001]
[1754813316037,3.30997778,4171.3,4170.6,0.001]
[1754813316238,2.39757082,4170.9,4170.6,0.001]
[1754813316468,4.32266838,4170.8,4170.6,0.001]
[1754813316668,1.925,4170.8,4170.6,0.001]
[1754813317366,0.71981,4171.2,4170.6,0.001]
[1754813317543,1.923,4171.1,4170.6,0.001]
[1754813317744,2.20656,4171.1,4170.6,0.001]
[1754813317961,1.923,4171.1,4170.6,0.001]
[1754813318162,0.9126,4171.0,4170.6,0.001]
[1754813318568,0.9126,4170.9,4170.6,0.001]
[1754813318974,1.923,4171.1,4170.6,2.39872018]
[1754813319174,0.12,4171.0,4170.6,2.39872018]
[1754813319377,0.12,4171.0,4170.6,0.001]
[1754813319672,2.042,4171.0,4170.9,2.39756407]
[1754813319846,1.922,4171.0,4170.9,2.39756407]
[1754813320169,1.921,4171.3,4170.8,0.12]
[1754813320376,0.4695,4171.2,4170.8,2.51761087]
[1754813320574,1.921,4171.4,4171.3,2.39733416]
[1754813321075,1.921,4171.4,4171.2,2.517376]
[1754813321376,2.8336,4171.4,4171.2,2.39733573]
[1754813321576,2.8336,4171.4,4171.0,2.51748462]
[1754813321577,1.921,4171.4,4171.1,0.00833936]
[1754813321781,0.7,4171.4,4171.1,0.00834117]
[1754813321986,1.923,4172.0,4171.5,2.39716915]
[1754813322188,1.923,4172.0,4171.7,2.39705281]
[1754813322495,1.923,4172.0,4171.6,3.12]
[1754813322646,2.3925,4172.0,4171.6,3.12]
[1754813322841,0.9126,4171.9,4170.2,1.922]
[1754813323082,2.39738483,4171.3,4170.6,2.39873008]
[1754813323375,0.12,4171.1,4170.7,2.39767904]
[1754813323578,0.8047333,4172.0,4171.3,2.39733416]
[1754813323579,0.9126,4171.8,4171.3,2.39733416]
[1754813323887,0.9126,4171.8,4171.0,0.12]
[1754813323888,0.12,4171.6,4171.0,0.12]
[1754813324055,2.51721781,4171.6,4171.0,0.12]
[1754813324388,0.12,4171.6,4171.0,0.12]
[1754813324570,0.12,4171.6,4171.2,2.39739045]
[1754813324880,1.0326,4171.6,4171.1,3.0]
[1754813325087,0.12,4171.6,4171.1,3.0]
[1754813325293,0.122,4172.0,4171.6,2.3971047]
[1754813325599,0.841575,4172.0,4171.4,3.12]
[1754813325770,0.841575,4172.0,4171.5,2.39721381]
[1754813326096,0.841575,4172.0,4171.4,0.12]
[1754813326389,0.122,4172.0,4171.6,5.39712158]
[1754813326559,0.841556,4172.0,4171.8,2.39702514]
[1754813326882,0.841556,4172.0,4171.5,3.0]
[1754813326883,0.841556,4172.0,4171.7,2.39710428]
[1754813327079,0.841556,4172.0,4171.7,2.39709209]
[1754813327281,0.002,4172.0,4171.9,0.12]
[1754813327648,0.002,4172.0,4171.1,0.4418]
[1754813327649,0.9442,4172.0,4171.1,3.0]
[1754813327850,1.783677,4172.0,4171.4,0.12]
[1754813328050,0.721477,4172.0,4171.9,2.39698938]
[1754813328248,0.721477,4172.0,4171.8,2.39703906]
[1754813328685,0.002,4172.0,4171.9,2.39698938]
[1754813329380,0.002,4172.0,4171.7,0.12]
[1754813329582,0.002,4172.0,4171.8,3.0]
[1754813330082,0.002,4172.0,4171.9,5.39698938]
[1754813330288,0.002,4172.0,4171.8,3.0]
[1754813330452,0.9442,4172.0,4171.7,0.12]
[1754813330648,0.002,4172.0,4171.8,5.39699991]
[1754813330864,0.002,4172.0,4171.7,0.12]
[1754813331052,0.9442,4172.0,4171.7,2.51709564]
[1754813331253,0.9442,4172.0,4171.8,5.39703547]
[1754813331457,0.002,4172.0,4171.8,5.39703547]
[1754813331714,0.002,4172.0,4171.8,3.0]
[1754813332008,0.002,4172.0,4171.9,2.39698938]
[1754813332150,0.002,4172.0,4171.9,2.4053191]
[1754813332350,0.002,4172.0,4171.9,2.95188938]
[1754813333085,0.002,4172.0,4171.9,2.51698938]
[1754813335801,0.002,4172.0,4171.9,2.95188938]
[1754813336001,0.002,4172.5,4172.4,2.39670213]
[1754813336181,0.002,4172.5,4172.4,5.40502467]
[1754813336381,0.002,4172.5,4172.4,5.83160213]
[1754813336907,0.002,4172.5,4172.4,5.95160213]
[1754813338203,0.002,4172.9,4172.4,5.95160213]
[1754813338204,0.002,4172.9,4172.8,13.37980817]
[1754813338365,1e-08,4172.9,4172.8,19.73180817]
[1754813338568,1e-08,4172.9,4172.8,20.42020817]
[1754813338764,1e-08,4173.3,4173.2,2.94624269]
[1754813338979,1e-08,4173.3,4173.2,7.86855374]
[1754813339177,1e-08,4173.3,4173.2,8.54864269]
[1754813339379,1e-08,4173.3,4173.2,8.29514269]
[1754813340124,1e-08,4173.3,4173.2,7.86024269]
[1754813340668,1e-08,4173.3,4173.2,7.31024269]
[1754813340870,1e-08,4173.3,4173.2,3.0]
[1754813341182,0.94220001,4173.3,4172.8,2.39647142]
[1754813341396,0.9422,4173.2,4172.8,2.39647142]
[1754813341719,0.9422,4173.1,4171.2,10.68783578]
[1754813341926,2.39618708,4173.3,4172.3,2.39675804]
[1754813342134,2.39618708,4173.3,4173.0,2.39632627]
[1754813342135,1e-08,4173.3,4173.0,2.39632627]
[1754813342427,0.002,4172.5,4172.4,18.29303791]
[1754813342631,1e-08,4173.3,4173.2,2.39624269]
[1754813342791,1e-08,4173.3,4173.2,4.85924269]
[1754813342989,1e-08,4173.3,4173.2,8.29414269]
[1754813343195,1e-08,4173.3,4173.2,7.85924269]
[1754813343635,1e-08,4173.3,4173.2,8.54764269]
[1754813344489,1e-08,4173.3,4173.2,5.39624269]
[1754813345614,1e-08,4173.3,4173.2,5.94624269]
[1754813345818,1e-08,4173.3,4173.2,5.39624269]
[1754813345983,1e-08,4173.3,4173.2,7.31024269]
[1754813346183,1e-08,4173.3,4173.2,5.39624269]
[1754813348188,0.94220001,4173.3,4173.2,5.39624269]
[1754813348588,1e-08,4173.3,4173.2,6.95424269]
[1754813348788,1e-08,4173.3,4173.2,5.51624269]
[1754813349526,1e-08,4173.3,4173.2,3.12]
[1754813349527,0.94220001,4173.3,4173.2,3.12]
[1754813349725,0.94220001,4173.3,4173.2,5.51624269]
[1754813349903,0.94220001,4173.3,4173.2,3.0]
[1754813350226,0.94220001,4173.3,4171.2,0.2545]
[1754813350227,3.33839912,4173.3,4172.3,2.39674834]
[1754813350412,0.12,4172.9,4172.3,0.12]
[1754813350618,0.9422,4172.8,4172.3,0.12]
[1754813350817,0.9422,4172.8,4171.8,2.39700046]
[1754813350818,0.12,4172.6,4172.0,2.51688861]
[1754813350993,0.9422,4172.5,4172.1,2.39687125]
[1754813351340,0.9422,4172.4,4172.0,0.12]
[1754813351824,2.39623447,4173.3,4171.6,0.001]
[1754813351825,0.9422,4172.3,4171.6,0.001]
[1754813351996,0.12,4172.1,4171.6,0.001]
[1754813352412,0.9422,4172.0,4171.7,2.39710429]
[1754813352618,0.9422,4171.9,4171.8,0.12]
[1754813352818,0.9422,4171.9,4171.6,0.001]
[1754813353006,0.9422,4171.8,4171.6,0.001]
[1754813353515,0.9422,4171.7,4171.6,0.001]
[1754813353912,3.33930429,4171.7,4171.6,0.001]
[1754813354117,1.51583314,4171.7,4171.6,0.001]
[1754813354427,0.9422,4171.7,4171.6,0.001]
[1754813354601,1.0622,4171.7,4171.6,0.001]
[1754813355503,3.45930429,4171.7,4171.6,0.001]
[1754813355711,3.48926809,4171.7,4171.6,0.001]
[1754813356130,3.45930429,4171.7,4171.6,0.001]
[1754813356427,4.6248983,4171.7,4171.6,1e-08]
[1754813357428,7.7408983,4171.7,4171.6,1e-08]
[1754813357627,7.7109345,4171.7,4171.6,1e-08]
[1754813357926,9.0729345,4171.7,4171.6,1e-08]
[1754813358126,7.1609345,4171.7,4171.6,1e-08]
[1754813358430,9.0729345,4171.7,4171.6,1e-08]
[1754813358816,7.1609345,4171.7,4171.6,1e-08]
[1754813359016,9.0729345,4171.7,4171.6,1e-08]
[1754813359699,6.0902,4171.7,4171.6,1e-08]
[1754813360301,8.48730429,4171.7,4171.6,1e-08]
[1754813360498,6.0902,4171.7,4171.6,1e-08]
[1754813361224,5.147,4171.7,4171.6,1e-08]
[1754813361510,1.911,4172.0,4171.7,2.39710429]
[1754813361827,0.095942,4172.1,4172.0,2.39693192]
[1754813362137,0.9115,4172.1,4171.6,1e-08]
[1754813362433,0.9115,4172.0,4171.6,1e-08]
[1754813362823,0.02996236,4171.9,4171.6,1e-08]
[1754813363035,0.9115,4171.9,4171.6,1e-08]
[1754813363228,2.51710429,4171.7,4171.6,1e-08]
[1754813363425,4.96344288,4171.7,4171.6,1e-08]
[1754813363628,5.87494288,4171.7,4171.6,1e-08]
[1754813366325,5.87294288,4171.7,4171.6,1e-08]
[1754813368442,3.05244288,4171.7,4171.6,1e-08]
[1754813368622,4.42610429,4171.7,4171.6,1e-08]
[1754813369148,5.33760429,4171.7,4171.6,1e-08]
[1754813370452,5.88760429,4171.7,4171.6,1e-08]
[1754813371918,5.89003471,4171.7,4171.6,1e-08]
[1754813372239,8.89003471,4171.7,4171.6,1e-08]
[1754813372441,10.85877773,4171.7,4171.6,1e-08]
[1754813372945,10.85677773,4171.7,4171.6,1e-08]
[1754813373148,10.85434731,4171.7,4171.6,1e-08]
[1754813373521,5.39734731,4171.7,4171.6,1e-08]
[1754813373725,5.33560429,4171.7,4171.6,1e-08]
[1754813373923,2.027,4171.7,4171.6,1e-08]
[1754813374354,4.42410429,4171.7,4171.6,1e-08]
[1754813374839,4.45406809,4171.7,4171.6,1e-08]
[1754813375016,5.36556809,4171.7,4171.6,1e-08]
[1754813375222,6.12145785,4171.7,4171.6,1e-08]
[1754813376210,6.67145785,4171.7,4171.6,1e-08]
[1754813376729,6.67279458,4171.7,4171.6,1e-08]
[1754813377040,6.67145785,4171.7,4171.6,1e-08]
[1754813377252,6.67279458,4171.7,4171.6,1e-08]
[1754813377419,6.67279458,4171.7,4171.1,1e-08]
[1754813377420,0.55,4171.5,4171.1,1e-08]
[1754813377624,2.39716176,4171.6,4171.1,1e-08]
[1754813377625,3.06739163,4171.2,4171.1,1e-08]
[1754813377820,3.09735902,4171.2,4171.1,1e-08]
[1754813378122,4.01019575,4171.2,4171.1,1e-08]
[1754813379046,5.88822836,4171.2,4171.1,1e-08]
[1754813379221,4.30672836,4171.2,4171.1,1e-08]
[1754813379548,3.59622065,4171.2,4171.1,1e-08]
[1754813379725,4.30539163,4171.2,4171.1,1e-08]
[1754813380122,2.39739163,4171.2,4171.1,1e-08]
[1754813380444,4.30539163,4171.2,4171.1,1e-08]
[1754813380824,4.80755902,4171.2,4171.1,1e-08]
[1754813381033,5.24685902,4171.2,4171.1,1e-08]
[1754813381233,6.38973414,4171.2,4171.1,1e-08]
[1754813381823,6.39216456,4171.2,4171.1,1e-08]
[1754813382236,6.38973414,4171.2,4171.1,1e-08]
[1754813382436,6.93973414,4171.2,4171.1,1e-08]
[1754813382647,6.94216456,4171.2,4171.1,1e-08]
[1754813383079,7.44449898,4171.2,4171.1,1e-08]
[1754813383434,2.39796652,4170.2,4169.4,2.83080798]
[1754813383757,1.908,4170.1,4169.4,0.4324]
[1754813383959,4.30604005,4170.1,4169.4,3.4324]
[1754813384263,1.908,4170.1,4169.4,0.4324]
[1754813384432,2.39818739,4169.9,4169.4,0.4324]
[1754813384631,0.1908,4170.1,4169.5,0.4324]
[1754813384830,1.908,4170.0,4169.5,0.4324]
[1754813385157,4.30609173,4170.0,4169.2,2.3985286]
[1754813385460,4.30609173,4170.0,4169.3,2.39848298]
[1754813385461,1.908,4170.0,4169.3,2.39848298]
[1754813385654,1.908,4170.0,4169.4,2.39841117]
[1754813385858,0.719985,4169.9,4169.3,2.39847653]
[1754813386158,0.719985,4169.9,4169.1,2.39855681]
[1754813386357,2.39820294,4169.8,4169.1,2.39855681]
[1754813386560,1.908,4169.7,4168.1,3.21]
[1754813386758,1.908,4169.7,4168.2,0.55]
[1754813386956,1.908,4169.7,4169.3,2.39843873]
[1754813387158,1.908,4169.7,4169.4,0.0382]
[1754813387345,1.908,4169.7,4169.1,2.39858126]
[1754813387549,0.719985,4169.9,4169.2,0.00836667]
[1754813387867,0.00133673,4171.0,4169.4,0.55]
[1754813388029,0.00133673,4171.0,4169.1,3.0]
[1754813388030,1.908,4170.9,4170.3,2.39790437]
[1754813388232,1.908,4170.9,4169.9,2.39813904]
[1754813388458,1.908,4170.9,4170.5,2.39774417]
[1754813388762,1.908,4170.9,4169.6,3.0]
[1754813388763,4.30558116,4170.9,4169.6,3.0]
[1754813388959,4.30558116,4170.9,4170.2,2.39795313]
[1754813389474,1.908,4170.9,4170.3,2.39790902]
[1754813389653,2.028,4170.9,4170.4,2.39785152]
[1754813389836,2.028,4170.9,4170.3,2.51790873]
[1754813390039,2.028,4170.9,4170.3,2.5179085]
[1754813390331,2.028,4170.9,4170.3,2.51789334]
[1754813390669,1.908,4170.8,4170.3,0.40147601]
[1754813390849,1.908,4170.8,4170.3,0.12]
[1754813391054,1.908,4170.8,4170.4,2.39784671]
[1754813391234,1.908,4170.8,4170.3,2.51786709]
[1754813391635,1.908,4170.8,4170.4,2.39781979]
[1754813392066,1.908,4170.8,4170.6,2.39772455]
[1754813392467,0.12,4170.9,4170.6,2.39772455]
[1754813392768,0.122,4171.7,4170.7,0.12]
[1754813392969,0.122,4171.7,4170.1,0.55]
[1754813392970,1.908,4171.6,4171.5,2.39721341]
[1754813393271,1.908,4171.6,4171.2,2.39737463]
[1754813393441,1.908,4171.6,4171.5,2.39721922]
[1754813393634,1.908,4171.6,4171.5,2.51721922]
[1754813395054,1.908,4171.6,4171.5,0.12]
[1754813395257,1.908,4171.6,4171.5,5.51721922]
[1754813396130,1.908,4171.6,4171.5,3.12]
[1754813396334,1.908,4171.6,4171.5,5.51721922]
[1754813396866,1.908,4171.6,4171.5,3.12]
[1754813397053,1.908,4171.6,4171.5,3.0]
[1754813397474,1.908,4171.6,4171.4,2.39726442]
[1754813397766,0.002,4171.7,4171.1,5.39744694]
[1754813397931,2.42907209,4171.7,4171.1,3.0]
[1754813398132,0.002,4171.7,4171.3,2.39728541]
[1754813398367,0.12,4171.6,4171.3,2.39728541]
[1754813398551,0.12,4171.6,4171.2,3.0]
[1754813398866,0.12,4171.6,4171.2,5.39737696]
[1754813399038,0.12,4171.6,4171.2,3.0]
[1754813399237,0.12,4171.6,4171.4,2.3972696]
[1754813399434,0.12,4171.6,4171.3,2.39731919]
[1754813399972,0.12,4171.6,4171.2,5.39738344]
[1754813400160,0.12,4171.6,4171.2,3.0]
[1754813400346,0.002,4171.7,4171.5,2.39721922]
[1754813400549,0.002,4171.7,4171.6,5.40549641]
[1754813400746,1e-08,4171.7,4171.6,5.51716176]
[1754813401660,1e-08,4171.7,4171.6,6.06716176]
[1754813402685,1e-08,4171.7,4171.6,5.51716176]
[1754813403054,1e-08,4171.7,4171.6,6.06716176]
[1754813403376,0.002,4173.0,4172.9,2.39641496]
[1754813403575,0.002,4173.0,4172.9,5.51641496]
[1754813405377,0.002,4173.0,4172.9,6.06641496]
[1754813405754,0.002,4173.0,4172.9,7.97241496]
[1754813405952,1e-08,4173.0,4172.9,7.97241496]
[1754813406196,0.002,4174.6,4173.4,2.39612785]
[1754813406490,0.002,4174.6,4173.0,4.79268093]
[1754813406491,0.002,4174.6,4174.5,2.51549646]
[1754813406646,0.002,4174.6,4174.5,5.51549646]
[1754813407547,0.002,4174.6,4174.5,7.42149646]
[1754813407877,0.12000001,4176.2,4174.7,0.55]
[1754813408066,0.12000001,4176.2,4175.0,2.39520958]
[1754813408268,0.12000001,4176.2,4175.7,2.39480571]
[1754813408486,0.12000001,4176.2,4175.8,0.00827252]
[1754813408776,1e-08,4176.2,4176.1,5.51457867]
[1754813409649,1e-08,4176.2,4176.1,3.12]
[1754813409851,3.35432808,4176.2,4174.8,2.39532217]
[1754813410170,1.29822582,4176.1,4175.6,2.39484281]
[1754813410373,0.4627,4176.0,4174.9,4.906]
[1754813410692,0.4627,4176.0,4175.0,3.0]
[1754813411049,0.4627,4176.0,4174.8,3.0]
[1754813411256,0.4627,4176.0,4175.2,3.0]
[1754813411457,0.4627,4176.0,4175.3,2.39503748]
[1754813411694,0.4627,4176.0,4175.6,2.39486113]
[1754813411877,0.4971,4176.1,4175.2,3.0]
[1754813412182,1e-08,4176.2,4175.7,2.39480805]
[1754813412382,0.46270001,4176.2,4174.8,3.0]
[1754813412584,0.46270001,4176.2,4175.0,2.39520958]
[1754813412777,0.46270001,4176.2,4175.7,2.39475783]
[1754813413119,0.9598,4176.1,4175.8,2.39473598]
[1754813413295,0.4971,4176.1,4175.6,3.0]
[1754813413584,0.9598,4176.0,4175.8,2.39471314]
[1754813413815,1e-08,4176.2,4176.1,2.39457867]
[1754813415370,1e-08,4176.2,4176.1,5.94457867]
[1754813417488,1e-08,4176.2,4176.1,14.24901978]
[1754813418582,1e-08,4176.2,4176.1,17.52801978]
[1754813418781,0.002,4177.0,4176.1,17.52801978]
[1754813418782,0.002,4177.0,4176.9,2.39412004]
[1754813418991,0.002,4177.0,4176.9,4.29912004]
[1754813419178,0.002,4177.0,4176.9,7.84912004]
[1754813419490,0.002,4177.0,4176.9,5.39412004]